bitfinex-derivatives/quotes_ETHF0:USTF0_20260310
["timestamp","ask_amount","ask_price","bid_price","bid_amount"]
[1773139611305,3.44742466,2057.1,2056.4,3.61402259]
[1773139624506,3.44742466,2057.1,2056.2,7.9e-06]
[1773139624811,3.36508356,2057.0,2056.2,3.62490666]
[1773139627211,3.36508356,2057.2,2056.5,3.62489876]
[1773139634714,9.71701809,2057.1,2056.5,3.62489876]
[1773139635013,3.36508356,2057.1,2056.5,3.62489876]
[1773139635210,3.36508356,2057.2,2056.5,3.62489876]
[1773139635612,3.36508356,2057.2,2056.7,1.89007143]
[1773139635917,3.36508356,2057.2,2056.8,3.62489876]
[1773139636615,9.73208356,2057.3,2057.0,3.62489876]
[1773139636916,6.3555055,2057.2,2057.0,3.13513236]
[1773139637117,3.36508356,2057.2,2056.8,3.62489876]
[1773139637313,9.73208356,2057.3,2056.8,3.62489876]
[1773139637515,3.36508356,2057.5,2057.1,3.62489876]
[1773139639718,3.36508356,2057.5,2057.0,3.62489876]
[1773139641319,9.73208356,2057.6,2057.2,3.62489876]
[1773139641512,9.73208356,2057.6,2057.2,3.3970245]
[1773139641709,3.36508356,2057.7,2057.4,3.62489876]
[1773139642015,3.36508356,2057.7,2057.3,3.62489876]
[1773139647521,3.36508356,2057.7,2057.4,3.62489876]
[1773139647824,9.73208356,2057.8,2057.4,3.62489876]
[1773139648028,3.36508356,2057.8,2057.4,3.62489876]
[1773139649923,3.36508356,2057.8,2057.2,3.62489876]
[1773139652131,3.36508356,2057.9,2057.2,3.62489876]
[1773139654639,3.36508356,2057.9,2057.4,3.45418355]
[1773139654838,3.36508356,2057.9,2057.6,3.45418355]
[1773139655037,0.56952624,2057.9,2057.6,3.45418355]
[1773139655538,3.22954746,2058.1,2057.8,3.45418355]
[1773139655839,3.22954746,2058.1,2057.8,3.45899228]
[1773139656034,0.00463711,2058.1,2057.9,3.45418355]
[1773139656239,9.77755819,2058.4,2057.9,3.45418355]
[1773139657136,3.42350018,2058.3,2057.9,3.45418355]
[1773139658242,9.81069726,2058.4,2057.9,3.45418355]
[1773139658539,3.4381596,2058.3,2057.9,3.45418355]
[1773139659942,3.42543668,2058.3,2057.9,3.45418355]
[1773139662246,9.77529879,2058.4,2057.9,3.45418355]
[1773139662640,6.37253766,2058.4,2058.1,3.45418355]
[1773139663136,9.76372987,2058.4,2058.1,3.45418355]
[1773139664044,3.39672987,2058.4,2058.1,3.45418355]
[1773139664639,3.39672987,2058.4,2057.8,1.89488016]
[1773139664845,3.39672987,2058.4,2057.9,3.45418355]
[1773139670148,0.00553766,2058.4,2058.0,3.61188911]
[1773139670446,3.35282283,2058.6,2058.2,3.61188911]
[1773139671343,3.35773584,2058.6,2058.2,3.61188911]
[1773139672650,3.32731741,2058.5,2057.9,3.61188911]
[1773139676851,3.32731741,2058.5,2057.9,5.50196054]
[1773139677154,3.29198202,2058.6,2058.2,3.61188911]
[1773139677354,1e-08,2058.6,2058.2,3.61188911]
[1773139679659,3.2838219,2058.6,2058.2,3.61188911]
[1773139681060,3.2838219,2058.6,2057.9,3.61188911]
[1773139682060,3.2550584,2058.5,2057.9,3.61188911]
[1773139685266,3.2550584,2058.5,2058.0,3.69319237]
[1773139686461,1e-08,2058.6,2058.1,3.69319237]
[1773139688468,3.24814042,2058.6,2057.9,3.69319237]
[1773139693364,3.24814042,2058.6,2058.1,3.69319237]
[1773139694371,3.17878877,2058.4,2057.8,3.6980011]
[1773139695762,3.40008842,2058.5,2057.9,3.69319237]
[1773139695967,1e-08,2058.6,2058.1,3.69319237]
[1773139696169,1e-08,2058.6,2058.0,1.89007143]
[1773139696170,1e-08,2058.6,2058.3,3.69319237]
[1773139696968,3.14305777,2059.0,2058.5,3.69319237]
[1773139697464,1.89007143,2059.5,2058.9,3.69319237]
[1773139697465,3.14367497,2059.5,2058.9,3.69319237]
[1773139697666,9.36215337,2059.4,2058.9,3.69319237]
[1773139697969,3.13138254,2059.3,2058.9,3.69319237]
[1773139698166,3.13608639,2059.4,2058.9,3.69319237]
[1773139700666,3.13608639,2059.4,2058.4,3.69319237]
[1773139703976,2.94555119,2059.2,2058.4,3.69319237]
[1773139711382,0.24278,2059.3,2058.4,3.69319237]
[1773139711383,2.85547519,2059.0,2058.4,3.69319237]
[1773139711582,2.85547519,2059.0,2057.9,0.24294]
[1773139711583,2.85547519,2059.0,2057.9,3.69319237]
[1773139712185,2.84367549,2058.8,2057.9,3.69319237]
[1773139713788,2.83482989,2059.2,2058.1,3.46305052]
[1773139713988,2.83482989,2059.0,2058.1,3.46305052]
[1773139714189,2.83482989,2059.3,2058.4,3.46305052]
[1773139714390,2.83482989,2059.2,2058.4,3.46305052]
[1773139721087,2.74971318,2059.0,2058.4,3.46305052]
[1773139721683,2.75335585,2059.3,2058.6,3.46305052]
[1773139725195,2.69181419,2059.1,2058.6,3.46305052]
[1773139727689,2.69181419,2059.1,2058.6,2.59632434]
[1773139727894,2.69181419,2059.1,2058.1,3.24871651]
[1773139734005,3.40101552,2058.9,2058.1,3.24871651]
[1773139744615,3.1112258,2058.7,2058.1,3.24871651]
[1773139745511,3.11005603,2058.5,2057.9,3.25667292]
[1773139753921,3.25356348,2058.6,2057.9,3.25667292]
[1773139757927,3.25356348,2058.6,2057.8,0.00480873]
[1773139758128,3.25356348,2058.6,2057.8,3.26148165]
[1773139759629,2.96432957,2058.3,2057.8,3.26148165]
[1773139761535,0.24287,2058.6,2057.6,3.25667292]
[1773139761536,3.0036013,2058.1,2057.6,3.25667292]
[1773139762536,3.0036013,2058.1,2057.6,3.26017632]
[1773139762731,3.234346,2058.2,2057.7,3.25667292]
[1773139767235,2.92847899,2058.5,2057.8,1.88862919]
[1773139767435,2.92847899,2058.5,2057.9,3.25667292]
[1773139768034,3.15829356,2058.6,2058.0,1.88862919]
[1773139768237,3.15829356,2058.6,2058.1,3.25667292]
[1773139771837,3.15829356,2058.6,2058.1,3.25667292]
[1773139772437,0.24287,2058.6,2058.1,3.25667292]
[1773139773136,3.11642426,2058.6,2058.1,3.25667292]
[1773139774639,2.86088624,2058.9,2058.6,3.03903636]
[1773139774841,6.19667434,2058.8,2058.6,3.03903636]
[1773139775141,2.86088624,2058.9,2058.6,3.03903636]
[1773139775340,6.1965358,2058.8,2058.6,3.03903636]
[1773139775539,2.86088624,2058.9,2058.4,3.03903636]
[1773139775737,2.86563341,2058.7,2058.4,3.03903636]
[1773139777041,2.84359074,2058.9,2058.4,3.03903636]
[1773139777243,9.04402304,2058.8,2058.4,3.03903636]
[1773139777442,2.84359074,2058.8,2058.4,3.03903636]
[1773139778543,2.84359074,2058.8,2058.3,3.03903636]
[1773139788850,2.75530365,2058.7,2058.3,3.03903636]
[1773139789345,2.75530365,2058.7,2058.0,3.16881701]
[1773139796057,1.88862919,2058.8,2058.0,3.16881701]
[1773139796058,2.35632243,2058.3,2058.0,3.16881701]
[1773139796257,2.35632243,2058.3,2058.0,1.26130334]
[1773139797055,0.24288,2058.5,2058.0,1.26130334]
[1773139797260,9.41181483,2058.4,2058.0,1.26130334]
[1773139797461,3.20483822,2058.4,2058.0,1.26130334]
[1773139798259,3.20483822,2058.4,2057.6,0.0035034]
[1773139798455,3.20483822,2058.4,2057.7,3.16881701]
[1773139801066,3.20483822,2058.4,2057.8,3.16881701]
[1773139801365,0.24288,2058.5,2057.8,3.16881701]
[1773139801766,3.44771822,2058.5,2057.8,3.16881701]
[1773139802970,7.24577901,2058.8,2058.2,3.16881701]
[1773139803268,9.40914456,2058.7,2058.2,3.16881701]
[1773139803467,3.20483822,2058.7,2058.2,3.16881701]
[1773139806473,3.15487017,2058.5,2058.0,3.01270373]
[1773139809175,1.88862919,2058.4,2057.7,3.01270373]
[1773139809374,3.15487017,2058.3,2057.7,3.01270373]
[1773139810775,3.15487017,2058.1,2057.7,3.01270373]
[1773139814878,3.15487017,2058.2,2057.7,3.01270373]
[1773139815275,3.15487017,2058.4,2057.7,3.01270373]
[1773139815472,3.15487017,2058.4,2057.8,3.01270373]
[1773139816483,3.15487017,2058.3,2057.8,3.01270373]
[1773139816685,3.15487017,2058.7,2058.0,1.88862919]
[1773139816890,6.20082412,2058.6,2058.1,3.01270373]
[1773139817092,3.15487017,2058.7,2058.1,3.01270373]
[1773139824995,3.15487017,2059.0,2058.2,1.88769816]
[1773139825193,3.15487017,2059.0,2058.3,3.01270373]
[1773139825701,3.15487017,2058.9,2057.6,10.20403889]
[1773139825900,3.15487017,2058.9,2057.7,3.01270373]
[1773139826706,3.15487017,2058.9,2058.0,1.88769816]
[1773139826906,3.15487017,2059.0,2058.1,3.01270373]
[1773139828408,3.15487017,2059.3,2058.1,3.01270373]
[1773139828604,3.15487017,2059.3,2058.4,3.01270373]
[1773139828807,3.15957402,2059.4,2058.4,3.01270373]
[1773139832110,0.00470385,2059.4,2058.5,3.01270373]
[1773139832510,3.15957402,2059.4,2058.5,3.01270373]
[1773139834910,2.94654341,2059.3,2058.5,3.01270373]
[1773139835112,0.00470385,2059.4,2058.5,3.01270373]
[1773139835113,2.95124726,2059.4,2058.5,3.01270373]
[1773139839114,0.00470385,2059.4,2058.7,2.81174131]
[1773139839610,2.95124726,2059.4,2058.7,2.81174131]
[1773139840012,0.00470385,2059.4,2058.7,2.81174131]
[1773139842016,2.95124726,2059.4,2058.7,2.81174131]
[1773139845313,2.94654341,2059.6,2059.0,2.81174131]
[1773139845615,2.94654341,2059.9,2059.0,2.81174131]
[1773139846417,2.94654341,2059.7,2059.0,2.81174131]
[1773139851925,0.00626798,2059.9,2059.0,2.81174131]
[1773139852128,2.95281139,2059.9,2059.1,1.88769816]
[1773139852422,2.95281139,2059.9,2059.2,2.81174131]
[1773139856129,3.00211055,2059.9,2059.2,2.81174131]
[1773139860729,2.99584257,2060.2,2059.5,2.96945285]
[1773139861135,3.23852257,2060.2,2059.2,2.96945285]
[1773139861335,2.99584257,2060.0,2059.2,2.96945285]
[1773139861931,2.99973006,2060.0,2059.2,2.96945285]
[1773139867534,0.24271,2059.9,2059.2,2.96945285]
[1773139867741,2.86019952,2059.8,2059.2,2.96945285]
[1773139868743,2.86019952,2059.8,2059.1,0.00488986]
[1773139869644,2.86019952,2059.6,2059.1,0.00488986]
[1773139875948,2.86019952,2059.6,2059.1,2.67525677]
[1773139877849,2.86019952,2059.9,2059.1,2.67525677]
[1773139881755,2.86019952,2059.8,2059.1,2.67525677]
[1773139888362,0.00388749,2060.0,2059.1,2.67525677]
[1773139888363,2.86408701,2060.0,2059.3,2.67036691]
[1773139888561,2.86408701,2060.0,2059.6,1.88570172]
[1773139888860,2.86408701,2060.0,2059.7,2.67036691]
[1773139889061,0.69122163,2060.3,2059.9,2.67036691]
[1773139889957,0.69544256,2060.3,2059.9,2.67036691]
[1773139891962,0.00422093,2060.3,2060.0,1.88570172]
[1773139892262,0.90044328,2060.8,2060.1,2.67036691]
[1773139892461,0.90004779,2060.6,2060.1,2.67036691]
[1773139893266,0.9043392,2060.6,2060.1,2.67036691]
[1773139894261,0.00429141,2060.6,2060.1,2.67036691]
[1773139895269,0.00429141,2060.6,2060.3,2.86162342]
[1773139895761,0.86103983,2061.0,2060.3,2.86162342]
[1773139896664,0.86103983,2061.0,2059.8,1.88570172]
[1773139896665,0.86577376,2061.0,2060.5,2.86162342]
[1773139897872,0.8113223,2061.3,2060.8,2.86162342]
[1773139898064,0.8113223,2061.1,2060.8,2.86162342]
[1773139898266,0.8113223,2061.1,2060.6,2.86162342]
[1773139898466,0.8113223,2061.1,2060.4,2.86162342]
[1773139898962,0.24254,2061.4,2061.0,2.86162342]
[1773139899161,0.80472714,2061.3,2061.0,2.86162342]
[1773139899371,0.80472714,2061.3,2060.5,4.74732514]
[1773139899568,0.80472714,2061.3,2060.6,2.86162342]
[1773139900066,0.8102106,2061.3,2060.6,2.86162342]
[1773139900266,0.8102106,2061.3,2060.7,1.88570172]
[1773139900466,0.00548346,2061.3,2060.8,2.86162342]
[1773139901272,0.78976243,2061.5,2060.8,2.86162342]
[1773139901466,0.77948045,2061.8,2061.1,1.88570172]
[1773139901670,0.77948045,2061.8,2061.2,2.86162342]
[1773139901971,1.01580221,2061.9,2061.4,2.86162342]
[1773139902171,0.77332221,2061.8,2061.2,2.86162342]
[1773139902571,0.24711743,2061.9,2061.2,2.86162342]
[1773139903070,1.013632,2062.2,2061.6,2.86162342]
[1773139903673,1.01021089,2062.1,2061.6,2.86162342]
[1773139903869,1.02113689,2061.9,2060.9,1.88570172]
[1773139904172,1.02113689,2061.7,2061.0,2.86162342]
[1773139906078,1.88570172,2061.8,2061.0,2.86162342]
[1773139906272,0.99875314,2061.9,2061.0,2.86162342]
[1773139907478,0.00513264,2061.9,2061.2,2.86162342]
[1773139907776,0.00513264,2061.9,2061.4,2.86162342]
[1773139908278,1.88570172,2062.4,2061.5,2.86162342]
[1773139908477,0.24241,2062.5,2061.7,2.86162342]
[1773139908676,0.96140202,2062.4,2061.7,2.86162342]
[1773139909078,0.96268537,2062.6,2062.1,2.8173088]
[1773139909278,0.9670867,2062.6,2062.1,2.82275341]
[1773139909477,0.00440133,2062.6,2062.1,2.82275341]
[1773139910278,1.21097456,2063.0,2062.1,2.82275341]
[1773139910578,0.96835352,2062.9,2062.1,2.82275341]
[1773139911178,0.00452342,2062.9,2062.1,2.82275341]
[1773139911378,1.07637404,2062.9,2062.1,2.82275341]
[1773139911577,1.07185062,2062.7,2062.1,2.82275341]
[1773139911877,1.06583805,2062.5,2062.1,2.82275341]
[1773139912077,1.30823805,2062.6,2062.1,2.82275341]
[1773139912278,1.82297371,2064.5,2062.8,2.8173088]
[1773139912475,1.82258642,2063.7,2062.3,2.8173088]
[1773139912678,2.06492642,2063.1,2062.3,2.8173088]
[1773139912878,1.81686174,2062.8,2062.1,2.82275341]
[1773139913178,1.81686174,2062.6,2062.1,0.00544461]
[1773139913380,1.81686174,2062.6,2061.9,2.8173088]
[1773139913578,0.00559285,2062.8,2061.9,2.8173088]
[1773139913781,1.61960428,2062.8,2061.9,2.8173088]
[1773139914274,1.61960428,2062.8,2061.9,2.82265968]
[1773139916883,0.00559285,2062.8,2061.9,2.82265968]
[1773139919784,1.51539629,2062.8,2061.9,2.82265968]
[1773139920385,0.00559285,2062.8,2061.9,2.82265968]
[1773139920586,1.50976678,2063.2,2061.9,2.82265968]
[1773139920885,1.50976678,2063.2,2062.1,2.8173088]
[1773139921086,1.50943856,2063.7,2062.2,2.8173088]
[1773139921384,1.50943856,2063.3,2062.2,2.8173088]
[1773139921579,1.51486598,2063.3,2062.2,2.8173088]
[1773139922581,0.00542742,2063.3,2062.2,2.8173088]
[1773139922781,1.31741571,2064.1,2062.1,2.82023635]
[1773139922782,1.49733461,2063.8,2062.8,2.8173088]
[1773139922985,1.31741571,2064.1,2062.8,2.8173088]
[1773139923189,1.50276203,2064.0,2062.8,2.8173088]
[1773139923887,1.50654865,2064.0,2062.8,2.8173088]
[1773139925078,0.00378662,2064.0,2062.8,2.8173088]
[1773139925381,0.00378662,2064.0,2063.0,5.52465524]
[1773139925585,0.00378662,2064.0,2063.2,2.70441889]
[1773139926287,1.50480579,2064.0,2063.2,2.70441889]
[1773139931395,0.00378662,2064.0,2063.2,2.70441889]
[1773139931894,1.42299328,2064.0,2063.2,2.70441889]
[1773139932994,0.00378662,2064.0,2063.2,2.70441889]
[1773139933800,0.00378662,2064.0,2063.5,2.70441889]
[1773139934099,0.00378662,2064.0,2063.5,2.70875573]
[1773139934297,1.31741571,2064.1,2063.7,2.70441889]
[1773139934498,1.39548084,2064.6,2063.9,2.70441889]
[1773139934694,1.38918551,2064.7,2063.9,2.70441889]
[1773139934898,1.38918551,2064.3,2063.9,2.70441889]
[1773139935301,1.39332255,2064.3,2063.9,2.70441889]
[1773139935505,1.40085701,2064.1,2063.5,2.70875573]
[1773139936601,1.64307701,2064.1,2063.3,2.70441889]
[1773139937600,1.64307701,2064.1,2063.3,2.70800164]
[1773139938798,1.64307701,2064.1,2063.3,0.00358275]
[1773139938998,1.64307701,2064.1,2063.1,2.70441889]
[1773139940100,1.64307701,2064.1,2063.1,2.70892917]
[1773139940299,1.64078443,2063.9,2063.1,2.70892917]
[1773139942398,1.64078443,2063.9,2062.9,2.70441889]
[1773139943103,1.62632628,2063.7,2062.9,2.70441889]
[1773139943304,1.38405628,2063.4,2062.0,2.70441889]
[1773139943499,1.38405628,2063.4,2062.0,2.70816004]
[1773139944506,1.89073069,2063.2,2062.0,2.70816004]
[1773139945008,5.96707593,2063.0,2062.0,2.70816004]
[1773139945208,6.61375395,2062.9,2062.0,2.70816004]
[1773139945409,1.92023532,2063.0,2062.0,2.70816004]
[1773139945609,6.60705065,2062.9,2062.0,2.70816004]
[1773139945808,1.92023532,2063.0,2062.0,2.70816004]
[1773139946013,6.60733875,2062.9,2062.0,2.70816004]
[1773139946206,1.92023532,2063.0,2062.0,2.70816004]
[1773139946407,6.60382579,2062.9,2062.0,2.70816004]
[1773139946611,1.92023532,2063.0,2062.0,2.70816004]
[1773139946808,6.60434551,2062.9,2062.0,2.70816004]
[1773139947105,1.92023532,2063.0,2062.0,2.70816004]
[1773139947310,6.60213295,2062.9,2062.0,2.70816004]
[1773139947512,1.92023532,2063.0,2062.0,2.70816004]
[1773139947712,6.60273012,2062.9,2062.0,2.70816004]
[1773139947913,1.92023532,2063.0,2062.0,2.70816004]
[1773139948811,1.76409859,2062.8,2062.0,2.70816004]
[1773139949009,1.76864547,2062.8,2062.0,2.70816004]
[1773139949511,6.59894858,2062.7,2062.0,2.70816004]
[1773139949713,0.00454688,2062.8,2062.0,2.70816004]
[1773139950011,6.60042794,2062.7,2062.0,2.70816004]
[1773139950212,1.75018715,2062.8,2062.0,2.70816004]
[1773139950514,6.59726121,2062.7,2062.0,2.70816004]
[1773139950713,1.75018715,2062.8,2062.0,2.70816004]
[1773139950916,6.59694678,2062.7,2062.0,2.70816004]
[1773139951114,1.75018715,2062.8,2062.0,2.70816004]
[1773139951314,6.5918605,2062.7,2062.0,2.70816004]
[1773139951516,1.75018715,2062.8,2062.0,2.70816004]
[1773139951717,6.59189352,2062.7,2062.0,2.70816004]
[1773139952015,1.75018715,2062.8,2062.0,2.70816004]
[1773139955419,0.00454688,2062.8,2062.0,2.70816004]
[1773139955821,1.7056026,2063.2,2062.2,2.8568509]
[1773139956122,6.58573878,2063.1,2062.2,2.8568509]
[1773139956419,1.7056026,2063.2,2062.2,2.8568509]
[1773139956619,6.58585631,2063.1,2062.2,2.8568509]
[1773139956820,0.00557446,2063.1,2062.2,2.8568509]
[1773139957222,5.75143952,2063.6,2062.4,2.8568509]
[1773139957520,6.58806058,2063.5,2062.4,2.8568509]
[1773139957821,1.7184705,2063.5,2062.4,2.8568509]
[1773139958224,1.71240919,2063.3,2062.4,2.8568509]
[1773139958925,0.00560066,2063.5,2062.4,2.8568509]
[1773139958926,1.94925677,2063.4,2062.4,2.8568509]
[1773139962023,1.69280529,2063.2,2062.4,2.8568509]
[1773139963421,0.00560066,2063.5,2062.4,2.8568509]
[1773139963422,1.69069729,2063.0,2062.4,2.8568509]
[1773139964824,1.69069729,2063.0,2062.1,2.8568509]
[1773139967524,1.64664557,2062.8,2062.1,2.8568509]
[1773139968618,4.04684061,2063.0,2062.1,2.8568509]
[1773139968824,2.7426363,2063.2,2062.3,2.8568509]
[1773139970028,2.34105647,2063.1,2062.3,2.8568509]
[1773139980735,6.59163414,2063.0,2062.3,2.8568509]
[1773139980933,2.34105647,2063.1,2062.3,2.8568509]
[1773139981133,6.59174624,2063.0,2062.3,2.8568509]
[1773139981431,2.34105647,2063.1,2062.3,2.8568509]
[1773139981632,8.87598686,2063.0,2062.3,2.8568509]
[1773139981825,2.28117606,2063.0,2062.3,2.8568509]
[1773139982633,8.87340633,2062.9,2062.3,2.8568509]
[1773139982932,2.27655951,2062.9,2062.3,2.8568509]
[1773139985937,2.24552314,2062.7,2062.1,2.79677988]
[1773139986839,4.04684061,2063.0,2062.1,2.79677988]
[1773139987037,6.60223873,2062.9,2062.1,2.79677988]
[1773139987237,6.60223873,2062.8,2062.1,2.79677988]
[1773139987438,2.24092546,2063.0,2062.1,2.79677988]
[1773139987635,6.60546716,2062.9,2062.1,2.79677988]
[1773139987929,6.60546716,2062.8,2062.1,2.79677988]
[1773139988134,2.24092546,2063.0,2062.1,2.79677988]
[1773139988336,6.60573954,2062.9,2062.1,3.03922988]
[1773139988536,2.24092546,2063.0,2062.1,3.03922988]
[1773139988737,6.60604693,2062.9,2062.1,3.03922988]
[1773139989036,2.24092546,2063.0,2062.1,3.03922988]
[1773139989236,6.60596879,2062.9,2062.1,3.03922988]
[1773139989437,6.23732116,2063.1,2062.1,3.03922988]
[1773139989743,6.60671258,2063.0,2062.1,3.03922988]
[1773139990038,6.60671258,2062.9,2062.1,3.03922988]
[1773139990339,2.19048055,2063.1,2062.1,3.03922988]
[1773139990638,6.608686,2063.0,2062.1,3.03922988]
[1773139990839,6.608686,2062.9,2062.1,3.03922988]
[1773139991039,2.20737659,2063.0,2062.1,3.03922988]
[1773139991240,6.60867939,2062.9,2062.1,3.03922988]
[1773139991435,2.20737659,2063.0,2062.1,3.03922988]
[1773139991636,6.60936235,2062.9,2062.1,3.03922988]
[1773139991935,2.20737659,2063.0,2062.1,3.03922988]
[1773139992137,6.60936472,2062.9,2062.1,3.03922988]
[1773139992337,2.20737659,2063.0,2062.1,3.03922988]
[1773139992538,8.8224493,2062.9,2062.1,3.03922988]
[1773139992838,2.21282165,2062.9,2062.1,3.03922988]
[1773139993640,2.21282165,2062.9,2062.1,2.79677988]
[1773139996839,2.18655631,2062.7,2062.1,2.79677988]
[1773139999542,2.43178,2063.0,2062.7,2.79677988]
[1773139999749,2.79804815,2063.1,2062.7,2.79677988]
[1773139999941,2.79804815,2063.1,2062.3,2.79677988]
[1773140000147,2.79804815,2062.9,2062.3,2.79677988]
[1773140002142,2.79804815,2063.1,2062.3,2.79677988]
[1773140002346,2.79804815,2062.9,2062.3,2.79677988]
[1773140005751,2.79804815,2062.8,2062.3,2.79677988]
[1773140006550,1.88019562,2063.1,2062.3,2.79677988]
[1773140006750,2.79804815,2062.9,2062.3,2.79677988]
[1773140008952,2.79804815,2062.8,2062.3,2.79677988]
[1773140011457,2.79804815,2063.0,2062.3,2.79677988]
[1773140011655,9.32480027,2062.9,2062.3,2.79677988]
[1773140011857,2.79804815,2062.9,2062.3,2.79677988]
[1773140012157,2.79804815,2063.3,2062.5,2.79677988]
[1773140012360,2.79804815,2063.1,2062.5,2.79677988]
[1773140012850,2.79804815,2063.1,2062.6,1.88019562]
[1773140013055,2.79804815,2063.1,2062.5,2.79677988]
[1773140016665,2.65733105,2063.3,2062.7,2.79412084]
[1773140016865,9.18317673,2063.2,2062.7,2.79412084]
[1773140017166,2.65733105,2063.2,2062.7,2.79412084]
[1773140018562,2.65733105,2063.1,2062.7,2.79412084]
[1773140019060,2.65733105,2063.1,2062.5,2.79412084]
[1773140021067,1.88019562,2063.2,2062.5,2.79412084]
[1773140021360,2.65733105,2063.2,2062.5,2.79412084]
[1773140022967,2.65733105,2063.3,2062.7,2.79412084]
[1773140023170,9.154759,2063.2,2062.7,2.79412084]
[1773140023469,2.65733105,2063.2,2062.7,2.79412084]
[1773140026862,2.65733105,2063.3,2062.7,2.79412084]
[1773140027067,9.15393826,2063.2,2062.7,2.79412084]
[1773140027268,2.65733105,2063.2,2062.7,2.79412084]
[1773140027673,2.65733105,2063.3,2062.7,2.79412084]
[1773140027873,6.49667986,2063.2,2062.7,2.79412084]
[1773140028068,2.65733105,2063.3,2062.7,2.79412084]
[1773140028271,2.65733105,2063.1,2062.7,2.79412084]
[1773140028572,2.65733105,2063.3,2062.7,2.79412084]
[1773140028768,9.25608629,2063.2,2062.7,2.79412084]
[1773140028968,2.75927354,2063.1,2062.7,2.79412084]
[1773140030773,2.75927354,2063.3,2062.7,2.79412084]
[1773140030977,2.75927354,2063.1,2062.7,2.79412084]
[1773140033272,0.00560066,2063.5,2062.7,2.79412084]
[1773140033273,2.7648742,2063.5,2062.7,2.79412084]
[1773140033470,2.75927354,2063.3,2062.7,2.79412084]
[1773140035871,9.25767662,2063.2,2062.7,2.79412084]
[1773140036174,2.75927354,2063.1,2062.7,2.79412084]
[1773140038478,2.75927354,2063.1,2062.5,2.62432947]
[1773140038876,2.75927354,2063.0,2062.5,2.62432947]
[1773140046082,2.54397014,2062.8,2062.0,2.12639677]
[1773140046380,2.54397014,2062.8,2062.1,2.78696828]
[1773140050778,1.88019562,2062.7,2062.1,2.78696828]
[1773140050978,2.54397014,2062.6,2062.1,2.78696828]
[1773140053384,2.54397014,2062.8,2062.1,2.78696828]
[1773140055686,2.54397014,2062.8,2062.2,1.88019562]
[1773140055983,2.54397014,2062.8,2062.3,2.78696828]
[1773140056183,2.54397014,2063.0,2062.3,2.78696828]
[1773140056384,2.54397014,2063.0,2062.2,1.88019562]
[1773140056385,2.54397014,2063.2,2062.5,2.78696828]
[1773140056587,9.0346358,2063.1,2062.5,2.78696828]
[1773140056780,2.54397014,2063.1,2062.5,2.78696828]
[1773140058685,2.54397014,2063.4,2062.6,1.88019562]
[1773140058887,0.00560066,2063.5,2062.7,2.78696828]
[1773140058888,9.03469936,2063.3,2062.7,2.78696828]
[1773140059085,2.54397014,2063.4,2062.7,2.78696828]
[1773140059286,9.03393093,2063.3,2062.7,2.78696828]
[1773140059585,2.54397014,2063.3,2062.7,2.78696828]
[1773140059787,2.54397014,2063.2,2062.7,2.78696828]
[1773140062789,4.42416576,2063.2,2062.5,2.78696828]
[1773140062987,2.54397014,2063.1,2062.5,2.78696828]
[1773140072090,2.54397014,2062.9,2062.2,2.78696828]
[1773140073187,5.93813221,2063.3,2062.2,2.78696828]
[1773140073394,9.03646655,2063.2,2062.2,2.78696828]
[1773140073597,9.13860165,2063.1,2062.2,2.78696828]
[1773140073793,6.49249641,2063.0,2062.2,2.78696828]
[1773140073996,2.64610524,2063.1,2062.2,2.78696828]
[1773140074195,9.13768528,2063.0,2062.2,2.78696828]
[1773140074396,2.64610524,2063.0,2062.2,2.78696828]
[1773140076400,2.64610524,2063.2,2062.2,2.78696828]
[1773140076601,9.13809432,2063.1,2062.3,2.47368968]
[1773140076802,2.64610524,2063.1,2062.3,2.47368968]
[1773140077200,4.05858787,2063.3,2062.3,2.47368968]
[1773140077500,2.64610524,2063.1,2062.3,2.47368968]
[1773140077893,2.64610524,2063.0,2062.3,2.47368968]
[1773140082703,2.64610524,2062.8,2062.1,2.47368968]
[1773140089213,1.87954434,2062.5,2061.2,12.6741893]
[1773140089409,1.87954434,2062.5,2061.0,15.2090271]
[1773140089410,2.60417318,2062.3,2061.3,2.44839306]
[1773140090012,2.60417318,2062.1,2061.3,2.44839306]
[1773140090513,2.60417318,2062.1,2061.3,2.45221944]
[1773140098024,0.2424,2062.6,2061.3,2.45221944]
[1773140098025,2.60417318,2062.5,2061.4,1.87954434]
[1773140098319,2.60417318,2062.5,2061.5,2.44839306]
[1773140099824,2.60417318,2062.7,2061.8,2.44839306]
[1773140100928,2.60417318,2062.4,2061.4,2.44839306]
[1773140102228,2.60417318,2062.2,2061.4,2.44839306]
[1773140103829,2.42111446,2062.1,2061.3,2.56095268]
[1773140105526,2.42111446,2062.1,2061.3,0.00382638]
[1773140105723,2.42111446,2061.9,2061.3,0.00382638]
[1773140106027,2.42561264,2061.9,2061.3,0.00382638]
[1773140106221,2.66809264,2061.9,2061.3,0.00382638]
[1773140106932,2.42111446,2061.8,2060.5,2.5571263]
[1773140107132,2.42111446,2061.8,2060.7,2.5571263]
[1773140107329,2.42111446,2061.8,2060.9,2.5571263]
[1773140107933,2.42111446,2061.8,2060.9,2.56243562]
[1773140112728,2.42111446,2061.8,2061.2,2.5571263]
[1773140115133,0.00449818,2061.9,2061.2,2.5571263]
[1773140115340,2.42111446,2062.3,2061.5,2.5571263]
[1773140115540,2.42111446,2062.1,2061.5,2.5571263]
[1773140116340,2.42561916,2062.1,2061.5,2.5571263]
[1773140116842,0.0045047,2062.1,2061.5,2.5571263]
[1773140117040,2.42111446,2062.3,2061.5,2.5571263]
[1773140117237,4.30407102,2062.7,2061.5,2.5571263]
[1773140117535,2.42111446,2062.5,2061.5,2.5571263]
[1773140117939,2.42111446,2062.5,2061.8,2.5571263]
[1773140118140,2.42471124,2062.5,2061.8,2.5571263]
[1773140118345,0.00359678,2062.5,2061.8,2.5571263]
[1773140120046,2.42111446,2062.7,2061.8,2.5571263]
[1773140120543,2.42111446,2062.7,2062.0,2.5571263]
[1773140120742,4.06169102,2063.1,2062.0,2.5571263]
[1773140120743,2.42111446,2063.1,2062.0,2.5571263]
[1773140120949,2.42111446,2062.9,2062.0,2.5571263]
[1773140125552,2.42111446,2062.9,2062.1,1.88010449]
[1773140125752,2.42111446,2062.9,2062.2,2.5571263]
[1773140125951,2.42111446,2062.9,2062.3,1.88010449]
[1773140126251,2.42111446,2062.9,2062.4,2.5571263]
[1773140126447,2.42111446,2062.9,2062.4,2.56197178]
[1773140128152,2.42524851,2063.1,2062.6,2.5571263]
[1773140128453,2.42524851,2063.1,2062.5,2.5571263]
[1773140128653,2.42111446,2063.0,2062.5,2.5571263]
[1773140129552,2.42111446,2063.0,2062.4,2.56197178]
[1773140139353,5.33222835,2063.5,2062.4,2.56197178]
[1773140139354,2.45678039,2063.4,2062.6,2.47973267]
[1773140139552,2.45678039,2063.3,2062.6,2.47973267]
[1773140139951,2.45678039,2063.2,2062.6,2.47973267]
[1773140140350,2.46169508,2063.2,2062.7,2.47973267]
[1773140140756,2.45678039,2063.1,2062.7,2.47973267]
[1773140141356,2.46169508,2063.2,2062.7,2.47973267]
[1773140141561,4.88568988,2063.2,2062.7,2.47973267]
[1773140142664,2.45678039,2063.1,2062.7,2.47973267]
[1773140143259,0.00491469,2063.2,2062.7,2.47973267]